fUSD/lending_fUSD_20260617
["ID","MTS","AMOUNT","RATE_DAILY","PERIOD"]
[425228924,1781627449000,-343.48140234,0.00028397,7]
[425228926,1781627449000,-383.08803017,0.000284,7]
[425228929,1781627449000,-307.12967549,0.000284,7]
[425228927,1781627449000,-178.53493286,0.000284,7]
[425228933,1781627449000,-307.28259925,0.000284,7]
[425228934,1781627449000,-215.47897823,0.000284,7]
[425228930,1781627449000,-307.18280147,0.000284,7]
[425228931,1781627449000,-193.57827877,0.000284,7]
[425228932,1781627449000,-310.96646025,0.000284,7]
[425228936,1781627449000,-301.46746085,0.000284,7]
[425228938,1781627449000,-414.95147965,0.000284,7]
[425228935,1781627449000,-173.21083243,0.000284,7]
[425228960,1781627449000,-161.45956644,0.00028444,7]
[425228983,1781627449000,-695.64,0.00028756,7]
[425228981,1781627449000,-695.64,0.00028725,2]
[425229000,1781627449000,-695.64,0.0002882,2]
[425229003,1781627449000,-695.64,0.00028915,2]
[425229001,1781627449000,-695.64,0.00028852,7]
[425229005,1781627449000,-2711.11,0.00028964,2]
[425229002,1781627449000,-695.64,0.00028883,30]
[425229004,1781627449000,-695.64,0.00028947,7]
[425229010,1781627449000,-5203.72,0.00028964,2]
[425229007,1781627449000,-4582.92,0.00028964,2]
[425229008,1781627449000,-2810.71,0.00028964,2]
[425229016,1781627449000,-500.0,0.00029,2]
[425229011,1781627449000,-695.64,0.00028979,30]
[425229012,1781627449000,-200.0,0.0002898,30]
[425228997,1781627449000,-1730.43,0.000288,7]
[425229013,1781627449000,-153.91866506,0.00028985,20]
[425229015,1781627449000,-2576.0,0.00029,7]
[425229014,1781627449000,-200.0,0.00029,2]
[425229017,1781627449000,-500.0,0.00029,2]
[425229018,1781627449000,-200.0,0.00029,2]
[425229020,1781627449000,-220.07,0.00029,2]
[425229021,1781627449000,-695.64,0.0002901,2]
[425229024,1781627449000,-393.0,0.00029023,30]
[425229022,1781627449000,-541.0,0.00029022,30]
[425229026,1781627449000,-3632.0,0.00029023,30]
[425229025,1781627449000,-2396.0,0.00029023,30]
[425229023,1781627449000,-541.0,0.00029023,30]
[425228967,1781627449000,-270.0455652,0.00028571,2]
[425229009,1781627449000,-2999.93,0.00028964,2]
[425228998,1781627449000,-2582.67,0.000288,7]
[425229019,1781627449000,-200.0,0.00029,2]
[425228995,1781627449000,-2999.93,0.00028797,7]
[425228999,1781627449000,-152.0,0.00028803,13]
[425228970,1781627449000,-229.11,0.0002863,2]
[425228980,1781627449000,-695.64,0.00028693,30]
[425228971,1781627449000,-2711.11,0.0002863,30]
[425228969,1781627449000,-544.0,0.00028588,7]
[425228975,1781627449000,-2810.71,0.0002863,30]
[425228976,1781627449000,-2999.93,0.0002863,30]
[425228979,1781627449000,-160.0,0.00028672,3]
[425228973,1781627449000,-4582.92,0.0002863,30]
[425228974,1781627449000,-695.64,0.0002863,2]
[425228972,1781627449000,-3182.68,0.0002863,30]
[425228977,1781627449000,-5203.72,0.0002863,30]
[425228982,1781627449000,-725.0,0.00028739,3]
[425228978,1781627449000,-695.64,0.00028661,7]
[425228989,1781627449000,-456.0,0.00028785,2]
[425228996,1781627449000,-5203.72,0.00028797,7]
[425228994,1781627449000,-2810.71,0.00028797,7]
[425229006,1781627449000,-3182.68,0.00028964,2]
[425228988,1781627449000,-409.0,0.00028784,2]
[425228991,1781627449000,-2711.11,0.00028797,7]
[425228986,1781627449000,-500.0,0.00028767,2]
[425228984,1781627449000,-451.04630341,0.00028766,2]
[425228987,1781627449000,-218.41127639,0.00028767,2]
[425228992,1781627449000,-3182.68,0.00028797,7]
[425228985,1781627449000,-262.64638837,0.00028767,30]
[425228993,1781627449000,-4582.92,0.00028797,7]
[425228990,1781627449000,-695.64,0.00028788,30]
[425229054,1781627450000,-187.07680487,0.00029169,30]
[425229048,1781627450000,-2810.71,0.00029132,30]
[425229044,1781627450000,-500.0,0.00029131,70]
[425229046,1781627450000,-3182.68,0.00029132,30]
[425229053,1781627450000,-258.47,0.00029169,30]
[425229052,1781627450000,-695.64,0.00029137,7]
[425229042,1781627450000,-200.0,0.00029119,2]
[425229055,1781627450000,-216.46519146,0.00029169,30]
[425229059,1781627450000,-701.51,0.00029201,2]
[425229060,1781627450000,-695.64,0.00029201,2]
[425229058,1781627450000,-360.77531911,0.00029201,2]
[425229057,1781627450000,-695.64,0.00029169,30]
[425229062,1781627450000,-701.51,0.00029232,7]
[425229061,1781627450000,-173.17215317,0.00029201,2]
[425229049,1781627450000,-2999.93,0.00029132,30]
[425229063,1781627450000,-695.66,0.00029232,7]
[425229056,1781627450000,-701.51,0.00029169,30]
[425229050,1781627450000,-5203.72,0.00029132,30]
[425229031,1781627450000,-529.0,0.00029046,30]
[425229047,1781627450000,-4582.92,0.00029132,30]
[425229064,1781627450000,-355.15110704,0.00029253,7]
[425229027,1781627450000,-462.0,0.00029023,30]
[425229028,1781627450000,-695.64,0.00029042,7]
[425229029,1781627450000,-973.0,0.00029046,30]
[425229030,1781627450000,-567.0,0.00029046,30]
[425229032,1781627450000,-1674.0,0.00029046,30]
[425229034,1781627450000,-915.0,0.00029046,30]
[425229035,1781627450000,-202.0,0.00029046,30]
[425229033,1781627450000,-377.0,0.00029046,30]
[425229037,1781627450000,-695.64,0.00029074,30]
[425229038,1781627450000,-10348.44,0.000291,2]
[425229039,1781627450000,-3373.53,0.000291,2]
[425229036,1781627450000,-293.0,0.00029061,30]
[425229040,1781627450000,-695.64,0.00029105,2]
[425229041,1781627450000,-280.03725111,0.00029119,2]
[425229045,1781627450000,-2711.11,0.00029132,30]
[425229043,1781627450000,-500.0,0.00029131,7]
[425229051,1781627450000,-701.51,0.00029137,7]
[425229065,1781627450000,-306.33952389,0.00029253,7]
[425229074,1781627450000,-477.6092321,0.00029253,7]
[425229067,1781627450000,-359.85748958,0.00029253,7]
[425229088,1781627450000,-199.48511278,0.00029256,7]
[425229090,1781627450000,-460.69451324,0.00029256,7]
[425229091,1781627450000,-194.3508264,0.00029256,7]
[425229092,1781627450000,-460.77420221,0.00029256,7]
[425229096,1781627450000,-466.44969038,0.00029256,7]
[425229093,1781627450000,-245.51361955,0.00029256,7]
[425229094,1781627450000,-193.2307433,0.00029256,7]
[425229095,1781627450000,-387.15655753,0.00029256,7]
[425229097,1781627450000,-155.29846048,0.00029256,7]
[425229099,1781627450000,-150.51805758,0.00029256,7]
[425229098,1781627450000,-460.92389887,0.00029256,7]
[425229103,1781627450000,-549.8786532,0.00029256,7]
[425229104,1781627450000,-622.42721947,0.00029256,7]
[425229101,1781627450000,-346.42166486,0.00029256,7]
[425229102,1781627450000,-452.20119127,0.00029256,7]
[425229105,1781627450000,-175.03080818,0.00029256,7]
[425229106,1781627450000,-457.11097454,0.00029256,7]
[425229087,1781627450000,-357.06986571,0.00029256,7]
[425229089,1781627450000,-490.86073973,0.00029256,7]
[425229100,1781627450000,-430.95795647,0.00029256,7]
[425229078,1781627450000,-508.705848,0.00029253,7]
[425229066,1781627450000,-272.21624665,0.00029253,7]
[425229086,1781627450000,-574.63204525,0.00029256,7]
[425229068,1781627450000,-416.44420756,0.00029253,7]
[425229073,1781627450000,-545.11327565,0.00029253,7]
[425229072,1781627450000,-186.85136205,0.00029253,2]
[425229070,1781627450000,-221.96437482,0.00029253,7]
[425229071,1781627450000,-451.45113155,0.00029253,7]
[425229076,1781627450000,-469.79301744,0.00029253,7]
[425229069,1781627450000,-319.07993305,0.00029253,7]
[425229079,1781627450000,-276.80945695,0.00029253,7]
[425229077,1781627450000,-563.72619731,0.00029253,7]
[425229085,1781627450000,-498.34980674,0.00029256,7]
[425229081,1781627450000,-342.53874237,0.00029253,7]
[425229082,1781627450000,-514.94287151,0.00029253,7]
[425229080,1781627450000,-256.28892354,0.00029253,7]
[425229084,1781627450000,-260.63999192,0.00029256,7]
[425229075,1781627450000,-555.27977961,0.00029253,7]
[425229083,1781627450000,-515.22210351,0.00029253,7]
[425229147,1781627451000,-322.91913288,0.00029301,7]
[425229135,1781627451000,-2999.93,0.00029299,7]
[425229138,1781627451000,-2582.67,0.000293,7]
[425229146,1781627451000,-524.63852645,0.00029301,7]
[425229140,1781627451000,-553.10107459,0.00029301,7]
[425229141,1781627451000,-360.57178685,0.00029301,7]
[425229144,1781627451000,-313.66387602,0.00029301,7]
[425229142,1781627451000,-515.53315726,0.00029301,7]
[425229148,1781627451000,-325.57674221,0.00029301,7]
[425229143,1781627451000,-302.21929673,0.00029301,7]
[425229137,1781627451000,-1730.43,0.000293,7]
[425229149,1781627451000,-405.37357162,0.00029301,7]
[425229154,1781627451000,-290.3986294,0.00029667,2]
[425229151,1781627451000,-555.28438153,0.0002933,7]
[425229153,1781627451000,-150.0,0.00029534,2]
[425229158,1781627451000,-150.0,0.00029788,2]
[425229155,1781627451000,-200.0,0.00029667,2]
[425229152,1781627451000,-152.0,0.00029438,14]
[425229157,1781627451000,-160.0,0.00029762,3]
[425229156,1781627451000,-1359.16189203,0.00029714,4]
[425229160,1781627451000,-725.0,0.00029807,4]
[425229170,1781627451000,-435.95850267,0.00029824,7]
[425229161,1781627451000,-532.72666056,0.00029824,7]
[425229159,1781627451000,-1730.43,0.000298,7]
[425229145,1781627451000,-523.87269816,0.00029301,7]
[425229150,1781627451000,-525.69404611,0.00029301,7]
[425229139,1781627451000,-251.10133277,0.00029301,7]
[425229112,1781627451000,-674.01718027,0.00029256,7]
[425229132,1781627451000,-3182.68,0.00029299,7]
[425229108,1781627451000,-272.53783849,0.00029256,7]
[425229107,1781627451000,-309.05033523,0.00029256,7]
[425229109,1781627451000,-591.36103633,0.00029256,7]
[425229111,1781627451000,-560.62266895,0.00029256,7]
[425229110,1781627451000,-165.62709636,0.00029256,7]
[425229113,1781627451000,-425.14513902,0.00029256,5]
[425229117,1781627451000,-227.28306632,0.00029256,7]
[425229114,1781627451000,-341.55821363,0.00029256,7]
[425229115,1781627451000,-450.14279349,0.00029256,7]
[425229162,1781627451000,-189.18428589,0.00029824,7]
[425229119,1781627451000,-520.65983831,0.00029256,2]
[425229118,1781627451000,-234.10149032,0.00029256,7]
[425229134,1781627451000,-2810.71,0.00029299,7]
[425229116,1781627451000,-295.19032648,0.00029256,2]
[425229121,1781627451000,-609.79227144,0.00029256,5]
[425229124,1781627451000,-486.50770882,0.00029256,7]
[425229127,1781627451000,-151.08394547,0.00029272,2]
[425229125,1781627451000,-830.13477489,0.00029256,7]
[425229122,1781627451000,-352.13977259,0.00029256,2]
[425229123,1781627451000,-246.86913171,0.00029256,7]
[425229126,1781627451000,-434.55707866,0.00029256,7]
[425229133,1781627451000,-4582.92,0.00029299,7]
[425229130,1781627451000,-725.0,0.00029273,4]
[425229131,1781627451000,-2711.11,0.00029299,7]
[425229129,1781627451000,-249.43573983,0.00029272,2]
[425229128,1781627451000,-1247.17869917,0.00029272,2]
[425229120,1781627451000,-311.68885171,0.00029256,2]
[425229167,1781627451000,-478.61989957,0.00029824,7]
[425229136,1781627451000,-5203.72,0.00029299,7]
[425229164,1781627451000,-544.4324933,0.00029824,7]
[425229203,1781627451000,-491.02723909,0.00029827,7]
[425229198,1781627451000,-377.44229714,0.00029827,7]
[425229197,1781627451000,-222.16208298,0.00029827,7]
[425229196,1781627451000,-388.70165279,0.00029827,7]
[425229201,1781627451000,-614.36560294,0.00029827,7]
[425229202,1781627451000,-233.82829513,0.00029827,7]
[425229204,1781627451000,-799.81378174,0.00029827,7]
[425229205,1781627451000,-386.46148661,0.00029827,7]
[425229206,1781627451000,-580.7348363,0.00029827,7]
[425229216,1781627451000,-425.10221105,0.00029827,7]
[425229207,1781627451000,-649.18990173,0.00029827,7]
[425229210,1781627451000,-165.44881996,0.00029827,2]
[425229200,1781627451000,-173.98411933,0.00029827,7]
[425229213,1781627451000,-310.59692095,0.00029827,7]
[425229215,1781627451000,-165.55061113,0.00029827,7]
[425229209,1781627451000,-405.20082551,0.00029827,7]
[425229211,1781627451000,-621.93292051,0.00029827,7]
[425229208,1781627451000,-899.19228614,0.00029827,7]
[425229214,1781627451000,-426.4711613,0.00029827,7]
[425229217,1781627451000,-614.5651985,0.00029827,7]
[425229219,1781627451000,-301.03611516,0.00029827,7]
[425229220,1781627451000,-646.4369347,0.00029827,7]
[425229221,1781627451000,-519.6324973,0.00029827,7]
[425229222,1781627451000,-602.9349217,0.00029827,7]
[425229218,1781627451000,-311.29510258,0.00029827,7]
[425229223,1781627451000,-733.17153759,0.00029827,7]
[425229212,1781627451000,-226.20959212,0.00029827,7]
[425229199,1781627451000,-410.27510891,0.00029827,7]
[425229166,1781627451000,-539.78623438,0.00029824,7]
[425229194,1781627451000,-614.25935098,0.00029827,7]
[425229195,1781627451000,-178.63142046,0.00029827,2]
[425229163,1781627451000,-459.50928584,0.00029824,7]
[425229165,1781627451000,-624.66631134,0.00029824,7]
[425229168,1781627451000,-677.17669733,0.00029824,7]
[425229169,1781627451000,-373.70272411,0.00029824,2]
[425229172,1781627451000,-636.81230946,0.00029824,7]
[425229174,1781627451000,-626.39068992,0.00029824,7]
[425229175,1781627451000,-199.73842897,0.00029824,7]
[425229173,1781627451000,-740.37303948,0.00029824,7]
[425229176,1781627451000,-678.274464,0.00029824,7]
[425229181,1781627451000,-751.63492974,0.00029824,7]
[425229178,1781627451000,-512.57784707,0.00029824,7]
[425229179,1781627451000,-513.80811355,0.00029824,7]
[425229171,1781627451000,-726.81770086,0.00029824,7]
[425229182,1781627451000,-686.96280468,0.00029824,7]
[425229180,1781627451000,-686.59049534,0.00029824,7]
[425229192,1781627451000,-245.50810422,0.00029827,7]
[425229189,1781627451000,-535.60479857,0.00029827,7]
[425229191,1781627451000,-654.48098631,0.00029827,7]
[425229188,1781627451000,-766.17606034,0.00029827,7]
[425229193,1781627451000,-201.22052711,0.00029827,7]
[425229186,1781627451000,-521.27998384,0.00029827,7]
[425229190,1781627451000,-398.97022555,0.00029827,7]
[425229187,1781627451000,-664.46640899,0.00029827,7]
[425229184,1781627451000,-371.60429956,0.00029827,7]
[425229183,1781627451000,-622.21332955,0.00029827,7]
[425229177,1781627451000,-553.61891391,0.00029824,7]
[425229185,1781627451000,-418.7324738,0.00029827,7]
[425229262,1781627452000,-150.0,0.00029863,2]
[425229265,1781627452000,-150.0,0.00029863,2]
[425229258,1781627452000,-150.0,0.00029863,2]
[425229263,1781627452000,-150.0,0.00029863,2]
[425229259,1781627452000,-150.0,0.00029863,2]
[425229256,1781627452000,-643.56372711,0.00029863,2]
[425229260,1781627452000,-150.0,0.00029863,2]
[425229257,1781627452000,-150.0,0.00029863,2]
[425229267,1781627452000,-150.0,0.00029863,2]
[425229255,1781627452000,-500.0,0.00029863,2]
[425229264,1781627452000,-298.50745568,0.00029863,2]
[425229261,1781627452000,-150.0,0.00029863,2]
[425229268,1781627452000,-500.0,0.00029863,2]
[425229281,1781627452000,-500.0,0.00029863,2]
[425229270,1781627452000,-500.0,0.00029863,2]
[425229277,1781627452000,-500.0,0.00029863,2]
[425229279,1781627452000,-500.0,0.00029863,2]
[425229269,1781627452000,-273.39628625,0.00029863,2]
[425229272,1781627452000,-500.0,0.00029863,2]
[425229274,1781627452000,-500.0,0.00029863,2]
[425229280,1781627452000,-500.0,0.00029863,2]
[425229273,1781627452000,-500.0,0.00029863,2]
[425229271,1781627452000,-500.0,0.00029863,2]
[425229276,1781627452000,-500.0,0.00029863,2]
[425229275,1781627452000,-500.0,0.00029863,2]
[425229282,1781627452000,-500.0,0.00029863,2]
[425229266,1781627452000,-150.0,0.00029863,2]
[425229278,1781627452000,-500.0,0.00029863,2]
[425229253,1781627452000,-250.0,0.00029863,7]
[425229239,1781627452000,-512.33732044,0.00029827,7]
[425229252,1781627452000,-500.0,0.00029856,60]
[425229228,1781627452000,-160.29679251,0.00029827,7]
[425229292,1781627452000,-470.49581403,0.00029872,7]
[425229225,1781627452000,-427.28519817,0.00029827,7]
[425229227,1781627452000,-350.06161636,0.00029827,7]
[425229226,1781627452000,-392.09235894,0.00029827,7]
[425229230,1781627452000,-159.92940095,0.00029827,7]
[425229229,1781627452000,-609.48129939,0.00029827,7]
[425229240,1781627452000,-675.21419024,0.00029827,7]
[425229233,1781627452000,-545.07567698,0.00029827,7]
[425229238,1781627452000,-898.6895737,0.00029827,7]
[425229237,1781627452000,-637.71770852,0.00029827,5]
[425229235,1781627452000,-331.25419272,0.00029827,7]
[425229232,1781627452000,-463.57550285,0.00029827,7]
[425229234,1781627452000,-788.48138177,0.00029827,7]
[425229231,1781627452000,-156.95396187,0.00029827,7]
[425229236,1781627452000,-747.49689194,0.00029827,7]
[425229241,1781627452000,-590.38065297,0.00029827,2]
[425229242,1781627452000,-454.56613264,0.00029827,7]
[425229243,1781627452000,-468.20298063,0.00029827,7]
[425229244,1781627452000,-694.21311774,0.00029827,2]
[425229245,1781627452000,-813.05636193,0.00029827,5]
[425229248,1781627452000,-651.83561799,0.00029827,7]
[425229247,1781627452000,-528.20965889,0.00029827,2]
[425229251,1781627452000,-700.0,0.00029856,60]
[425229250,1781627452000,-500.0,0.00029856,60]
[425229246,1781627452000,-467.53327757,0.00029827,2]
[425229249,1781627452000,-246.23,0.00029828,11]
[425229254,1781627452000,-250.0,0.00029863,7]
[425229224,1781627452000,-829.90295929,0.00029827,7]
[425229283,1781627452000,-500.0,0.00029863,2]
[425229284,1781627452000,-351.89825629,0.00029863,2]
[425229319,1781627452000,-217.38181247,0.00029902,7]
[425229326,1781627452000,-866.63,0.00029999,3]
[425229323,1781627452000,-10000.0,0.00029925,2]
[425229320,1781627452000,-151.0,0.00029922,2]
[425229325,1781627452000,-606.64,0.00029999,3]
[425229321,1781627452000,-458.0,0.00029922,2]
[425229322,1781627452000,-2000.0,0.00029925,2]
[425229324,1781627452000,-259.98,0.00029999,3]
[425229327,1781627452000,-200.0,0.0003,11]
[425229328,1781627452000,-200.0,0.0003,11]
[425229338,1781627452000,-1731.44585384,0.0003,7]
[425229335,1781627452000,-25000.0,0.0003,2]
[425229332,1781627452000,-200.0,0.0003,11]
[425229333,1781627452000,-200.0,0.0003,11]
[425229331,1781627452000,-200.0,0.0003,11]
[425229329,1781627452000,-200.0,0.0003,11]
[425229337,1781627452000,-9818.33,0.0003,2]
[425229330,1781627452000,-200.0,0.0003,11]
[425229339,1781627452000,-650.0,0.0003,2]
[425229336,1781627452000,-2500.0,0.0003,2]
[425229334,1781627452000,-211.9,0.0003,11]
[425229343,1781627452000,-45499.92624487,0.0003,7]
[425229341,1781627452000,-369.71199633,0.0003,30]
[425229340,1781627452000,-1731.44585384,0.0003,7]
[425229345,1781627452000,-164.8,0.0003,2]
[425229293,1781627452000,-698.49693088,0.00029872,7]
[425229344,1781627452000,-198.28,0.0003,2]
[425229316,1781627452000,-17269.91714149,0.000299,2]
[425229317,1781627452000,-155.55967759,0.000299,2]
[425229342,1781627452000,-45499.92624487,0.0003,7]
[425229311,1781627452000,-17269.91714149,0.000299,2]
[425229318,1781627452000,-740.37917538,0.00029902,7]
[425229289,1781627452000,-737.46809945,0.00029872,7]
[425229285,1781627452000,-150.0,0.00029863,2]
[425229291,1781627452000,-453.3289451,0.00029872,7]
[425229286,1781627452000,-750.0,0.00029866,7]
[425229287,1781627452000,-502.20266553,0.00029872,7]
[425229290,1781627452000,-540.85768028,0.00029872,7]
[425229297,1781627452000,-488.36511331,0.00029872,7]
[425229296,1781627452000,-202.5632741,0.00029872,7]
[425229294,1781627452000,-699.51803526,0.00029872,7]
[425229300,1781627452000,-2582.67,0.000299,7]
[425229295,1781627452000,-484.37869932,0.00029872,7]
[425229298,1781627452000,-608.06035743,0.00029872,7]
[425229303,1781627452000,-17269.91714149,0.000299,2]
[425229288,1781627452000,-304.10814886,0.00029872,7]
[425229299,1781627452000,-700.92539482,0.00029872,7]
[425229314,1781627452000,-17269.91714149,0.000299,2]
[425229309,1781627452000,-17269.91714149,0.000299,2]
[425229312,1781627452000,-17269.91714149,0.000299,2]
[425229313,1781627452000,-17269.91714149,0.000299,2]
[425229302,1781627452000,-17269.91714151,0.000299,2]
[425229310,1781627452000,-17269.91714149,0.000299,2]
[425229315,1781627452000,-17269.91714149,0.000299,2]
[425229308,1781627452000,-17269.91714149,0.000299,2]
[425229305,1781627452000,-17269.91714149,0.000299,2]
[425229306,1781627452000,-17269.91714149,0.000299,2]
[425229304,1781627452000,-17269.91714149,0.000299,2]
[425229301,1781627452000,-150.0,0.000299,2]
[425229307,1781627452000,-17269.91714149,0.000299,2]
[425229389,1781627453000,-500.0,0.00030136,7]
[425229386,1781627453000,-500.0,0.00030136,7]
[425229382,1781627453000,-500.0,0.00030136,7]
[425229381,1781627453000,-500.0,0.00030136,7]
[425229378,1781627453000,-500.0,0.00030136,7]
[425229377,1781627453000,-500.0,0.00030136,7]
[425229385,1781627453000,-500.0,0.00030136,7]
[425229374,1781627453000,-500.0,0.00030136,7]
[425229376,1781627453000,-500.0,0.00030136,7]
[425229384,1781627453000,-500.0,0.00030136,7]
[425229380,1781627453000,-500.0,0.00030136,7]
[425229391,1781627453000,-500.0,0.00030136,7]
[425229393,1781627453000,-500.0,0.00030136,7]
[425229392,1781627453000,-500.0,0.00030136,7]
[425229394,1781627453000,-500.0,0.00030136,7]
[425229390,1781627453000,-500.0,0.00030136,7]
[425229387,1781627453000,-500.0,0.00030136,7]
[425229397,1781627453000,-500.0,0.00030136,7]
[425229398,1781627453000,-500.0,0.00030136,7]
[425229395,1781627453000,-500.0,0.00030136,7]
[425229396,1781627453000,-500.0,0.00030136,7]
[425229400,1781627453000,-500.0,0.00030136,7]
[425229399,1781627453000,-500.0,0.00030136,7]
[425229402,1781627453000,-500.0,0.00030136,7]
[425229379,1781627453000,-500.0,0.00030136,7]
[425229388,1781627453000,-500.0,0.00030136,7]
[425229383,1781627453000,-500.0,0.00030136,7]
[425229359,1781627453000,-1674.0,0.00030046,30]
[425229367,1781627453000,-832.964,0.00030082,25]
[425229348,1781627453000,-541.0,0.00030022,30]
[425229346,1781627453000,-200.0,0.0003,2]
[425229349,1781627453000,-541.0,0.00030023,30]
[425229350,1781627453000,-393.0,0.00030023,30]
[425229347,1781627453000,-262.16201594,0.0003,7]
[425229352,1781627453000,-3632.0,0.00030023,30]
[425229361,1781627453000,-915.0,0.00030046,30]
[425229351,1781627453000,-2396.0,0.00030023,30]
[425229354,1781627453000,-506.05,0.00030037,14]
[425229358,1781627453000,-529.0,0.00030046,30]
[425229355,1781627453000,-884.0,0.00030037,2]
[425229357,1781627453000,-567.0,0.00030046,30]
[425229375,1781627453000,-500.0,0.00030136,7]
[425229356,1781627453000,-973.0,0.00030046,30]
[425229360,1781627453000,-377.0,0.00030046,30]
[425229405,1781627453000,-500.0,0.00030136,7]
[425229363,1781627453000,-293.0,0.00030061,30]
[425229368,1781627453000,-17269.91714149,0.00030089,2]
[425229372,1781627453000,-500.0,0.00030136,7]
[425229364,1781627453000,-400.0,0.0003007,2]
[425229371,1781627453000,-451.04630341,0.00030135,2]
[425229365,1781627453000,-152.0,0.00030073,15]
[425229373,1781627453000,-500.0,0.00030136,7]
[425229366,1781627453000,-223.65,0.00030082,30]
[425229370,1781627453000,-655.0,0.0003013,30]
[425229369,1781627453000,-150.0,0.00030119,30]
[425229353,1781627453000,-462.0,0.00030023,30]
[425229401,1781627453000,-500.0,0.00030136,7]
[425229362,1781627453000,-202.0,0.00030046,30]
[425229409,1781627453000,-200.0,0.00030136,2]
[425229445,1781627453000,-200.0,0.00030215,2]
[425229439,1781627453000,-1835.383212,0.00030137,15]
[425229437,1781627453000,-1500.0,0.00030137,15]
[425229440,1781627453000,-1592.75,0.00030137,7]
[425229442,1781627453000,-644.79446245,0.00030212,2]
[425229441,1781627453000,-151.0,0.00030212,2]
[425229443,1781627453000,-775.4783256,0.00030212,2]
[425229434,1781627453000,-930.00000017,0.00030137,120]
[425229438,1781627453000,-1500.0,0.00030137,15]
[425229447,1781627453000,-3882.28,0.0003025,2]
[425229446,1781627453000,-288.41,0.00030217,2]
[425229449,1781627453000,-181.7906944,0.00030291,7]
[425229436,1781627453000,-930.0,0.00030137,120]
[425229450,1781627453000,-550.0,0.000303,30]
[425229455,1781627453000,-287.0,0.000303,30]
[425229453,1781627453000,-550.0,0.000303,30]
[425229451,1781627453000,-550.0,0.000303,30]
[425229452,1781627453000,-550.0,0.000303,30]
[425229456,1781627453000,-1730.43,0.000303,7]
[425229457,1781627453000,-725.0,0.00030341,5]
[425229458,1781627453000,-934.975129,0.00030394,7]
[425229459,1781627453000,-796.01538683,0.00030394,7]
[425229460,1781627453000,-925.46629936,0.00030394,7]
[425229461,1781627453000,-847.84308,0.00030395,7]
[425229462,1781627453000,-858.23811918,0.00030395,7]
[425229410,1781627453000,-703.09,0.00030137,2]
[425229454,1781627453000,-550.0,0.000303,30]
[425229444,1781627453000,-393.70643432,0.00030215,2]
[425229448,1781627453000,-2500.0,0.0003025,2]
[425229429,1781627453000,-930.55304896,0.00030137,120]
[425229435,1781627453000,-930.00000001,0.00030137,120]
[425229404,1781627453000,-500.0,0.00030136,7]
[425229406,1781627453000,-500.0,0.00030136,7]
[425229408,1781627453000,-527.28854591,0.00030136,7]
[425229407,1781627453000,-500.0,0.00030136,7]
[425229411,1781627453000,-829.08195946,0.00030137,2]
[425229412,1781627453000,-207.91837504,0.00030137,7]
[425229413,1781627453000,-415.83675007,0.00030137,7]
[425229414,1781627453000,-500.0,0.00030137,3]
[425229418,1781627453000,-3943.0,0.00030137,120]
[425229417,1781627453000,-3950.0,0.00030137,120]
[425229421,1781627453000,-400.0,0.00030137,120]
[425229415,1781627453000,-299.9,0.00030137,2]
[425229420,1781627453000,-400.0,0.00030137,120]
[425229403,1781627453000,-500.0,0.00030136,7]
[425229428,1781627453000,-941.0609793,0.00030137,120]
[425229416,1781627453000,-3950.0,0.00030137,120]
[425229419,1781627453000,-162.96,0.00030137,7]
[425229426,1781627453000,-1504.526558,0.00030137,15]
[425229424,1781627453000,-1500.0,0.00030137,15]